fUSD/lending_fUSD_20250416
["ID","MTS","AMOUNT","RATE_DAILY","PERIOD"]
[358152703,1744786240874,-981.89589485,0.00018,2]
[358152704,1744786240885,-413.37225163,0.00018,2]
[358152705,1744786241005,-2335.29685159,0.00018,2]
[358152706,1744786241048,-841.95204165,0.00018,2]
[358152707,1744786241059,-1025.06710056,0.00018,2]
[358152715,1744786245017,-9985.903201,0.00018,2]
[358152716,1744786245031,-54026.54896235,0.00018,2]
[358152717,1744786245043,-6769.85369587,0.00018,2]
[358152718,1744786245063,-3150.73353402,0.00018,2]
[358152719,1744786245106,-8132.04,0.00018,2]
[358152720,1744786245141,-11786.963878,0.00018,2]
[358152731,1744786247111,-1039.4839,0.00018,2]
[358152732,1744786247123,-6171.0,0.00018,2]
[358152733,1744786247583,-2588.29699047,0.00018,2]
[358152734,1744786247597,-693.66664498,0.00018,2]
[358152735,1744786247609,-25083.77421228,0.00018,2]
[358152736,1744786247621,-6487.33388835,0.00018,2]
[358152737,1744786247639,-4997.7066997,0.00018,2]
[358152739,1744786388076,244.84509582,7.945e-05,2]
[358152740,1744786388100,5381.18270118,7.945e-05,2]
[358152741,1744786505454,18690.34,0.00017,2]
[358152742,1744786580528,200.0,0.00017646,7]
[358152745,1744787110084,200.0,0.00017256,2]
[358152746,1744787145324,-436.80700285,0.00017542,2]
[358152747,1744787145352,-1000.0,0.00017658,2]
[358152748,1744787145374,-250.0,0.00017696,2]
[358152749,1744787145395,-162.56,0.00017733,2]
[358152750,1744787145416,-1758.73,0.00017813,2]
[358152751,1744787145438,-160.05,0.00017882,2]
[358152752,1744787145460,-1454.0,0.00017885,2]
[358152753,1744787145480,-500.19849729,0.000179,2]
[358152754,1744787145501,-196.34497914,0.000179,2]
[358152755,1744787145522,-2574.67,0.00017914,2]
[358152756,1744787145542,-155.0,0.00017973,2]
[358152757,1744787145563,-207.4,0.00017989,2]
[358152758,1744787145585,-231.98909126,0.00017999,2]
[358152759,1744787145606,-230.06276936,0.00017999,2]
[358152760,1744787145628,-300.0,0.00017999,2]
[358152761,1744787145648,-300.0,0.00017999,2]
[358152762,1744787145670,-701.0,0.00018,2]
[358152763,1744787145695,-65239.78560578,0.00018,2]
[358152764,1744787146095,-52122.02465477,0.00018,2]
[358152765,1744787158789,511.7,0.00015853,2]
[358152766,1744787238583,-300.0,0.00017697,2]
[358152767,1744787238608,-200.19849729,0.00017698,2]
[358152768,1744787252778,-22496.99150271,0.00017698,2]
[358152769,1744787404039,-250.0,0.00017567,2]
[358152771,1744787431748,-210.6263,0.00017814,2]
[358152772,1744787431758,-142.50411086,0.000179,2]
[358152773,1744787431770,-298.86,0.000179,2]
[358152774,1744787431781,-58.83438643,0.000179,2]
[358152775,1744787431790,-207.4,0.00017989,2]
[358152776,1744787431799,-300.0,0.00017999,2]
[358152777,1744787431808,-633.0,0.00018,2]
[358152778,1744787431817,-1277.57424125,0.00018,2]
[358152779,1744787431865,-653.51,0.00018,2]
[358152780,1744787431900,-3894.63008053,0.00018,2]
[358152786,1744787437831,-435.90161833,0.00018,2]
[358152787,1744787437864,-126.09838167,0.00018,2]
[358152788,1744787437875,-870624.03728496,0.00018,2]
[358152789,1744787437884,-495538.45854781,0.00018,2]
[358152790,1744787437895,-880.04,0.00018,2]
[358152791,1744787437983,-363.70677812,0.00018,2]
[358153031,1744787443850,-505.0,0.00018,2]
[358153032,1744787444081,-760.03412062,0.00018,2]
[358153035,1744787446260,-313459.89651202,0.00018,2]
[358153036,1744787446271,-204707.1277453,0.00018,2]
[358153037,1744787446280,-258267.07767113,0.00018,2]
[358153040,1744787584044,-317.39747708,0.0001757,2]
[358153041,1744787664398,250.0,0.00017,2]
[358153042,1744787665335,-250.0,0.0001757,2]
[358153043,1744787669457,-296.46187106,0.0001757,2]
[358153044,1744787705178,250.0,0.00017,2]
[358153045,1744787706302,18663.74,0.00017,2]
[358153046,1744787708679,-250.0,0.0001757,2]
[358153047,1744787815022,-224.94,0.0001757,2]
[358153048,1744787874029,-71.09065186,0.0001757,2]
[358153049,1744787874053,-135.56934814,0.0001757,2]
[358153050,1744787883591,-89.37065186,0.0001757,2]
[358153051,1744787883617,-1000.0,0.0001757,2]
[358153052,1744787883647,-3186.0352,0.00017814,2]
[358153053,1744787883674,-300.0,0.00017899,2]
[358153054,1744787883702,-10831.97934477,0.000179,2]
[358153055,1744787883727,-263.0498,0.000179,2]
[358153056,1744787883758,-244.3084799,0.000179,2]
[358153057,1744787887666,-56.4603201,0.000179,2]
[358153058,1744787887691,-532.71183447,0.000179,2]
[358153059,1744787887717,-500.19849729,0.000179,2]
[358153060,1744788022621,200.0,0.00017441,7]
[358153062,1744788114027,1711.35894894,0.00016,2]
[358153063,1744788123230,23850.56,0.00017441,2]
[358153064,1744788127609,635.56,0.00017441,2]
[358153065,1744788281337,514.2,0.00015571,2]
[358153066,1744788310732,2332.91954964,0.000154,2]
[358153067,1744788314495,267.35,0.00017443,2]
[358153068,1744788355111,17160.07505447,6.94e-05,2]
[358153069,1744788461968,250.0,0.00017437,2]
[358153070,1744788518760,1499.999999,0.000151,2]
[358153080,1744788597620,208.44,0.00017437,2]
[358153081,1744788614247,704.94,0.00017347,2]
[358153093,1744788631812,-514.2,0.00017835,2]
[358153094,1744788632033,-300.0,0.00017899,2]
[358153095,1744788632048,-300.0,0.00017899,2]
[358153096,1744788632059,-182.33990417,0.000179,2]
[358153097,1744788632068,-181.60931761,0.000179,2]
[358153098,1744788632079,-2450.9755,0.000179,2]
[358153099,1744788632090,-172.69003376,0.000179,2]
[358153100,1744788632101,-718.889993,0.000179,2]
[358153102,1744788632113,-970.99304133,0.000179,2]
[358153105,1744788632131,-149.31530989,0.000179,2]
[358153107,1744788632141,-778.29983011,0.000179,2]
[358153109,1744788632152,-562.5,0.000179,2]
[358153111,1744788632164,-948.9,0.000179,2]
[358153114,1744788632175,-312.5,0.000179,2]
[358153116,1744788632186,-11477.56866556,0.000179,2]
[358153119,1744788632205,-2364.22938583,0.000179,2]
[358153121,1744788632215,-508.46192473,0.000179,2]
[358153123,1744788632224,-508.46192473,0.000179,2]
[358153125,1744788632233,-188.96751297,0.000179,2]
[358153127,1744788632243,-500.19849729,0.000179,2]
[358153129,1744788632252,-589.103,0.000179,2]
[358153131,1744788632262,-162.4911765,0.0001791,2]
[358153134,1744788632271,-178.08954966,0.00017935,2]
[358153138,1744788632286,-1904.49684383,0.00017935,2]
[358153141,1744788632297,-365.19994533,0.00017935,2]
[358153146,1744788632313,-1066.82821222,0.00017935,2]
[358153149,1744788632327,-451.38544896,0.00017935,2]
[358153152,1744788632336,-169.39,0.0001796,2]
[358153155,1744788632345,-8383.92206715,0.00017973,2]
[358153159,1744788632359,-514.07793285,0.00017973,2]
[358153162,1744788632368,-166.80378859,0.00017973,2]
[358153165,1744788632377,-169.26916383,0.00017973,2]
[358153168,1744788632386,-454.84911473,0.00017973,2]
[358153172,1744788632397,-48.69958293,0.00017973,2]
[358153174,1744788632406,-155.77848054,0.00017973,2]
[358153177,1744788632416,-544.75966,0.00017973,2]
[358153180,1744788632425,-236.03045731,0.00017973,2]
[358153183,1744788632433,-161.34545221,0.00017973,2]
[358153186,1744788632442,-19.64919342,0.00017973,2]
[358153190,1744788632453,-187.40975277,0.00017973,2]
[358153193,1744788632462,-379.24039114,0.00017973,2]
[358153196,1744788632472,-159.67808854,0.00017973,2]
[358153199,1744788632481,-500.91538115,0.00017973,2]
[358153201,1744788632490,-115.78138793,0.00017973,2]
[358153203,1744788632501,-384.21861207,0.00017973,2]
[358153205,1744788632510,-174.422,0.00017989,2]
[358153207,1744788632519,-51.80752977,0.00017989,2]
[358153209,1744788632531,-155.59247023,0.00017989,2]
[358153211,1744788632540,-918.3117798,0.0001799,2]
[358153217,1744788637900,-3211.91999948,0.0001799,2]
[358153218,1744788637912,-11568.6154122,0.0001799,2]
[358153219,1744788637923,-4770.83653177,0.0001799,2]
[358153220,1744788637935,-3600.0,0.0001799,2]
[358153223,1744788638017,-50362.03872961,0.0001799,2]
[358153224,1744788638027,-201.19079097,0.0001799,2]
[358153225,1744788638036,-201.19079097,0.0001799,2]
[358153226,1744788638045,-389.24750724,0.00017999,2]
[358153227,1744788638055,-299.99,0.00017999,4]
[358153228,1744788638064,-1000.79690213,0.00017999,2]
[358153229,1744788638074,-300.0,0.00017999,2]
[358153230,1744788638083,-676.03545945,0.00017999,2]
[358153231,1744788638093,-269.62676984,0.00018,2]
[358153232,1744788638102,-580.0,0.00018,2]
[358153233,1744788638111,-218.999999,0.00018,2]
[358153234,1744788638121,-313896.10813965,0.00018,2]
[358153235,1744788638131,-1911.83,0.00018,2]
[358153236,1744788638140,-1073936.15456732,0.00018,2]
[358153237,1744788638152,-983.76745006,0.00018,2]
[358153238,1744788638163,-453.12999309,0.00018,2]
[358153239,1744788638175,-1144.63046961,0.00018,2]
[358153240,1744788638186,-3997.606726,0.00018,2]
[358153241,1744788638199,-374.99999994,0.00018,2]
[358153242,1744788638211,-218019.12331989,0.00018,2]
[358153243,1744788638221,-1696.62089369,0.00018,2]
[358153244,1744788638233,-412082.3273132,0.00018,2]
[358153245,1744788638242,-209.808139,0.00018,2]
[358153246,1744788638251,-953996.45876224,0.00018,2]
[358153247,1744788638263,-1607.37694282,0.00018,2]
[358153248,1744788638278,-467.91456368,0.00018,2]
[358153249,1744788638290,-4850.43578301,0.00018,2]
[358153250,1744788638302,-16822.12664002,0.00018,2]
[358153251,1744788638318,-1378.62714229,0.00018,2]
[358153252,1744788638330,-358.33485164,0.00018,2]
[358153260,1744788638441,-4792.68487853,0.00018,2]
[358153261,1744788638451,-2081.55042702,0.00018,2]
[358153262,1744788638462,-1235.0,0.00018,2]
[358153263,1744788638491,-689.32368187,0.00018,2]
[358153264,1744788638502,-1339.79455922,0.00018,2]
[358153407,1744788640020,-798.52623198,0.00018,2]
[358153410,1744788640031,-263.9574886,0.00018,2]
[358153412,1744788640043,-62633.25000001,0.00018,2]
[358153431,1744788640219,-3284.44,0.00018,2]
[358153433,1744788640230,-3447.26292742,0.00018,2]
[358153445,1744788640331,-19392.44679243,0.00018,2]
[358153459,1744788640471,-0.0136453,0.00018,2]
[358153462,1744788640492,-1137.82083903,0.00018,2]
[358153909,1744788645017,-152.0,0.00017935,2]
[358153910,1744788645026,-341.09706335,0.00018,2]
[358153913,1744788645045,-182.90293665,0.00018,2]
[358153915,1744788645055,-470.48326206,0.00018,2]
[358153920,1744788645089,-602.63,0.00018,2]
[358153994,1744788645828,-450.9,0.00018,2]
[358154008,1744788645942,-1662.4858,0.00018,2]
[358154222,1744788885817,244.84509582,0.0001705,2]
[358154223,1744788885842,947.69490418,0.0001705,2]
[358154224,1744788913034,1000.0,0.0001705,2]
[358154225,1744788928529,700.0,0.000173,6]
[358154226,1744788930634,1400.0,0.000174,6]
[358154227,1744788932678,2100.0,0.000175,6]
[358154228,1744788935043,2800.0,0.000176,6]
[358154229,1744788936889,3500.0,0.000177,6]
[358154230,1744788938977,700.0,0.000178,6]
[358154231,1744788941061,700.0,0.000179,6]
[358154232,1744788954800,3701.0,0.000153,5]
[358154233,1744788968508,600.0,0.000173,6]
[358154234,1744788970603,1200.0,0.000174,6]
[358154235,1744788972750,1800.0,0.000175,6]
[358154236,1744788974847,2500.0,0.000176,6]
[358154237,1744788976935,3100.0,0.000177,6]
[358154238,1744788979026,600.0,0.000178,6]
[358154239,1744788981118,600.0,0.000179,6]
[358154240,1744789074737,200.0,0.00017012,7]
[358154241,1744789110929,1117.87658046,0.00017999,5]
[358154242,1744789110976,1117.87658047,0.00017999,5]
[358154243,1744789223872,154.59,0.00017457,2]
[358154244,1744789327847,523.59,0.00015069,2]
[358154245,1744789328047,523.59,0.00017333,2]
[358154246,1744789380603,18853.96,0.00016982,2]
[358154247,1744789444246,200.0,0.00016982,2]
[358154248,1744789515253,250.0,0.00017,2]
[358154249,1744789555310,250.0,0.00017,2]
[358154250,1744789661292,471.57,0.00017457,2]
[358154264,1744789832135,-156.49,0.00017734,2]
[358154265,1744789832145,-156.49,0.0001774,2]
[358154266,1744789832155,-156.49,0.00017746,2]
[358154267,1744789832164,-156.49,0.00017752,2]
[358154268,1744789832174,-150.0,0.00017753,2]
[358154269,1744789832183,-156.49,0.00017758,2]
[358154270,1744789832192,-156.49,0.00017763,2]
[358154271,1744789832202,-156.49,0.00017769,2]
[358154272,1744789832211,-156.49,0.00017775,2]
[358154273,1744789832220,-156.49,0.00017781,2]
[358154274,1744789832230,-156.49,0.00017787,2]
[358154275,1744789832240,-156.49,0.00017793,2]
[358154276,1744789832250,-156.49,0.00017799,2]
[358154277,1744789832259,-156.49,0.00017805,2]
[358154278,1744789832269,-156.49,0.00017811,2]
[358154279,1744789832278,-156.49,0.00017817,2]
[358154280,1744789832287,-54.58954754,0.00017823,2]
[358154281,1744789832299,-101.90045246,0.00017823,2]
[358154282,1744789832308,-207.4,0.00017889,2]
[358154283,1744789832318,-276.00352983,0.00017899,2]
[358154284,1744789832333,-23.99647017,0.00017899,2]
[358154285,1744789832345,-300.0,0.00017899,2]
[358154286,1744789832355,-961.9745844,0.000179,2]
[358154287,1744789832366,-108.33674202,0.000179,2]
[358154289,1744789832376,-165.02790773,0.000179,2]
[358154291,1744789832387,-181.60931761,0.000179,2]
[358154292,1744789832397,-500.19849729,0.000179,2]
[358154293,1744789832406,-168.90478809,0.000179,2]
[358154294,1744789832416,-0.42130572,0.0001791,2]
[358154295,1744789832428,-161.29624998,0.0001791,2]
[358154296,1744789832437,-199.59774501,0.00017973,2]
[358154298,1744789832446,-502.39296452,0.00017973,2]
[358154300,1744789832456,-106.89118657,0.00017973,2]
[358154302,1744789832467,-393.10881343,0.00017973,2]
[358154303,1744789832476,-511.05236735,0.00017973,2]
[358154304,1744789832485,-402.82047754,0.00017999,2]
[358154305,1744789832494,-194.908,0.00017999,2]
[358154306,1744789832503,-329.317,0.00017999,2]
[358154307,1744789832513,-1349.24464438,0.00018,2]
[358154308,1744789832524,-1166.6660776,0.00018,2]
[358154310,1744789832535,-300.0,0.00018,2]
[358154313,1744789832546,-1993.03746763,0.00018,2]
[358154316,1744789838013,-281.2009172,0.00018,2]
[358154317,1744789838182,-424.02830336,0.00018,2]
[358154318,1744789838349,-329461.11097982,0.00018,2]
[358154320,1744789838359,-1000.0,0.00018,2]
[358154322,1744789838370,-1000.0,0.00018,2]
[358154323,1744789838380,-1000.0,0.00018,2]
[358154324,1744789838391,-1000.0,0.00018,2]
[358154325,1744789838401,-1000.0,0.00018,2]
[358154327,1744789838411,-1000.0,0.00018,2]
[358154329,1744789838422,-1000.0,0.00018,2]
[358154331,1744789838432,-1000.0,0.00018,2]
[358154332,1744789838441,-1000.0,0.00018,2]
[358154334,1744789838451,-1000.0,0.00018,2]
[358154336,1744789838459,-1000.0,0.00018,2]
[358154338,1744789838469,-1000.0,0.00018,2]
[358154340,1744789838479,-1000.0,0.00018,2]
[358154342,1744789838488,-1000.0,0.00018,2]
[358154344,1744789838497,-1000.0,0.00018,2]
[358154346,1744789838507,-1000.0,0.00018,2]
[358154347,1744789838516,-1000.0,0.00018,2]
[358154349,1744789838526,-1000.0,0.00018,2]
[358154351,1744789838535,-1000.0,0.00018,2]
[358154352,1744789838545,-1000.0,0.00018,2]
[358154353,1744789838555,-221.11687588,0.00018,2]
[358154354,1744789838564,-467.21295602,0.00018,3]
[358154355,1744789838574,-250.0,0.00018,2]
[358154356,1744789838583,-250.0,0.00018,2]
[358154357,1744789838593,-250.0,0.00018,2]
[358154358,1744789838603,-371.3,0.00018,2]
[358154359,1744789838613,-1015017.85340272,0.00018,2]
[358154360,1744789838626,-610.36903987,0.00018,2]
[358154362,1744789840177,-391.23747591,0.00018,2]
[358154363,1744789840189,-369.0,0.00018,2]
[358154364,1744789840364,-1671.59652,0.00018,2]
[358154396,1744789846387,-942.03622492,0.00018,2]
[358154397,1744789846420,-4180.0,0.00018,2]
[358154398,1744789846432,-13101.31808196,0.00018,2]
[358154399,1744789846482,-6377.7564884,0.00018,2]
[358154400,1744789846493,-20983.22347909,0.00018,2]
[358155276,1744789922376,-190.17704303,0.00017693,2]
[358155277,1744790120743,200.0,0.00017457,7]
[358155278,1744790218538,158.77664992,0.00017518,2]
[358155279,1744790220524,-302.89854807,0.00017518,2]
[358155280,1744790248789,155.784217,0.0001743,2]
[358155281,1744790308982,500.9,0.00015582,2]
[358155283,1744790441667,-287.58766184,0.00017518,2]
[358155284,1744790444805,-169.92186529,0.00017518,2]
[358155287,1744790522815,-80.81527488,0.00017518,2]
[358155288,1744790522841,-169.18472512,0.00017527,2]
[358155289,1744790551790,-80.81527488,0.00017527,2]
[358155290,1744790551811,-69.18472512,0.00017536,2]
[358155291,1744790554529,-172.0,0.00017536,2]
[358155293,1744790599193,186.0,0.000175,2]
[358155294,1744790617966,186.0,0.000175,2]
[358155298,1744790906035,14359.5,0.00017457,2]
[358155299,1744790915885,280.405,0.00017502,2]
[358155302,1744791032361,-429.96752822,0.00017846,2]
[358155303,1744791032373,-70.93247178,0.00017846,2]
[358155304,1744791032382,-183.04752822,0.00017859,2]
[358155305,1744791032434,-66.95247178,0.00017859,2]
[358155306,1744791032445,-300.0,0.00017899,2]
[358155307,1744791032455,-500.19849729,0.000179,2]
[358155308,1744791032465,-536.22864818,0.000179,2]
[358155309,1744791032477,-393.72193276,0.000179,2]
[358155310,1744791032487,-4222.71582064,0.000179,2]
[358155311,1744791032509,-385.95944384,0.000179,2]
[358155312,1744791032566,-700.0,0.000179,2]
[358155313,1744791032627,-260.6522352,0.000179,2]
[358155314,1744791032639,-3157.46107573,0.000179,2]
[358155315,1744791032651,-1671.8876068,0.000179,2]
[358155316,1744791032687,-1534.3108601,0.000179,2]
[358155317,1744791032699,-402.91371413,0.000179,2]
[358155399,1744791038448,-52.99080835,0.000179,2]
[358155400,1744791038458,-731.50921765,0.000179,2]
[358155401,1744791038470,-286.49996773,0.000179,2]
[358155402,1744791038522,-71370.88237941,0.000179,2]
[358155403,1744791038532,-837.7930675,0.000179,2]
[358155404,1744791038542,-161.7175557,0.0001791,2]
[358155405,1744791038552,-792.0,0.00017952,2]
[358155406,1744791038561,-1280.0,0.00017952,2]
[358155407,1744791038571,-1439.0,0.00017952,2]
[358155408,1744791038580,-545.0,0.00017952,2]
[358155409,1744791038590,-908.0,0.00017952,2]
[358155410,1744791038599,-630.725,0.00017952,2]
[358155411,1744791038608,-4149.0,0.00017952,2]
[358155412,1744791038619,-3966.0,0.00017954,2]
[358155413,1744791038628,-152.0,0.00017954,2]
[358155414,1744791038638,-155.0,0.00017973,2]
[358155415,1744791038647,-514.90291555,0.00017973,2]
[358155416,1744791038658,-166.3,0.00017977,2]
[358155417,1744791038668,-207.4,0.00017989,2]
[358155418,1744791038677,-263.454,0.00017999,2]
[358155419,1744791038687,-272.47325507,0.00017999,2]
[358155420,1744791038697,-294.45100436,0.00017999,2]
[358155421,1744791038706,-230.06276936,0.00017999,2]
[358155422,1744791038716,-537.0,0.00018,2]
[358155423,1744791038727,-366.26676493,0.00018,2]
[358155424,1744791038738,-1277049.16550256,0.00018,2]
[358155425,1744791038750,-1347.32824109,0.00018,2]
[358155426,1744791038762,-633.833,0.00018,2]
[358155450,1744791040661,-13706.98380757,0.00018,2]
[358155451,1744791040721,-6479.34772063,0.00018,2]
[358155452,1744791040822,-392109.13870281,0.00018,2]
[358155453,1744791040920,-33750.47119513,0.00018,2]
[358155465,1744791043272,-619.819988,0.00018,2]
[358155466,1744791043284,-6074.60850713,0.00018,2]
[358155467,1744791043295,-2700.0,0.00018,2]
[358155468,1744791043336,-3943.22296477,0.00018,2]
[358155475,1744791045965,-801.97731923,0.00018,2]
[358155476,1744791045993,-2777.77718934,0.00018,2]
[358155477,1744791046005,-1723.0003,0.00018,2]
[358155478,1744791046016,-5047.1909532,0.00018,2]
[358155479,1744791046027,-8621.80687808,0.00018,2]
[358155480,1744791046038,-807.52063904,0.00018,2]
[358155481,1744791046049,-634884.58591113,0.00018,2]
[358155482,1744791046059,-333.0,0.00018,2]
[358155485,1744791046068,-333.0,0.00018,2]
[358155486,1744791046078,-333.0,0.00018,2]
[358155488,1744791046088,-333.0,0.00018,2]
[358155489,1744791046097,-333.0,0.00018,2]
[358155491,1744791046107,-333.0,0.00018,2]
[358155493,1744791046117,-333.0,0.00018,2]
[358155495,1744791046126,-333.0,0.00018,2]
[358155497,1744791046135,-333.0,0.00018,2]
[358155498,1744791046145,-333.0,0.00018,2]
[358155499,1744791046155,-333.0,0.00018,2]
[358155500,1744791046164,-1000.0,0.00018,2]
[358155501,1744791046173,-1018.42144013,0.00018,2]
[358155502,1744791046183,-774046.31161987,0.00018,2]
[358155507,1744791048443,1358.37,0.00017453,2]
[358155509,1744791134413,156.65,0.00017453,2]
[358155510,1744791223849,200.0,0.00017453,7]
[358155511,1744791315723,450.81,0.00015536,2]
[358155512,1744791365523,250.0,0.00017,2]
[358155513,1744791405713,250.0,0.00017,2]
[358155523,1744791812065,200.0,0.00016864,2]
[358155524,1744791982910,1000.0,0.00017227,2]
[358155528,1744792068150,679.18,0.00017269,2]
[358155529,1744792074211,-207.33744552,0.00017599,2]
[358155530,1744792074233,-2574.67,0.00017622,2]
[358155531,1744792074254,-2237.0881762,0.00017699,2]
[358155532,1744792074278,-450.81,0.00017799,2]
[358155533,1744792074300,-300.0,0.00017899,2]
[358155534,1744792074326,-300.0,0.00017899,2]
[358155535,1744792074348,-1000.0,0.000179,2]
[358155536,1744792074371,-12500.0,0.000179,2]
[358155537,1744792074395,-1428.96664542,0.000179,2]
[358155538,1744792074418,-500.19849729,0.000179,2]
[358155539,1744792074439,-207.33744551,0.000179,2]
[358155540,1744792074458,-196.34497914,0.000179,2]
[358155541,1744792074478,-280.9132443,0.0001791,2]
[358155542,1744792074498,-155.0,0.00017973,2]
[358155543,1744792074517,-500.0,0.00017973,2]
[358155544,1744792074537,-514.90291555,0.00017973,2]
[358155545,1744792074557,-251.1381516,0.00017987,2]
[358155546,1744792074582,-263.454,0.00017989,2]
[358155547,1744792074832,-207.4,0.00017989,2]
[358155548,1744792074864,-21742.54035216,0.0001799,3]
[358155549,1744792074888,-150.0,0.00017999,2]
[358155550,1744792074911,-4031.89814731,0.00017999,2]
[358155555,1744792121107,499.999999,0.000151,2]
[358155565,1744792176778,2654.57,0.00013699,2]
[358155566,1744792177383,2654.57,0.00013699,2]
[358155567,1744792177762,2654.57,0.00013699,2]
[358155568,1744792178098,2654.57,0.00013699,2]
[358155569,1744792178698,2654.57,0.00013699,2]
[358155570,1744792179078,2654.57,0.00013699,2]
[358155571,1744792179638,2654.57,0.00013699,2]
[358155572,1744792180044,2654.57,0.00013699,2]
[358155573,1744792180643,2654.57,0.00013699,2]
[358155574,1744792181023,2654.57,0.00013699,2]
[358155575,1744792181412,2654.57,0.00013699,2]
[358155576,1744792181786,2654.57,0.00013699,2]
[358155577,1744792182107,2654.57,0.00013699,2]
[358155578,1744792182587,2654.57,0.00013699,2]
[358155579,1744792183009,2654.57,0.00013699,2]
[358155580,1744792183472,2654.57,0.00013699,2]
[358155581,1744792184064,287.63995,0.00013699,2]
[358155582,1744792184092,2366.93005,0.00013699,2]
[358155583,1744792184280,2654.57,0.00013699,2]
[358155584,1744792184724,2654.57,0.00013699,2]
[358155585,1744792185076,2654.68387457,0.00013699,2]
[358155603,1744792232312,-157.81,0.00017744,2]
[358155605,1744792232322,-209.468706,0.00017884,2]
[358155607,1744792232332,-822.60804965,0.00017884,2]
[358155609,1744792232344,-534.10516331,0.00017884,2]
[358155616,1744792232367,-4807.27573404,0.00017884,2]
[358155619,1744792232377,-161.01456,0.00017884,2]
[358155622,1744792232390,-158.595066,0.00017884,2]
[358155623,1744792232400,-3841.436387,0.00017884,2]
[358155625,1744792232410,-300.0,0.00017899,2]
[358155627,1744792232419,-2096.98023504,0.000179,2]
[358155630,1744792232431,-1487.62633996,0.000179,2]
[358155631,1744792232443,-13752.43410145,0.000179,2]
[358155632,1744792232454,-1701.05016392,0.000179,2]
[358155633,1744792232467,-4418.71489926,0.000179,2]
[358155634,1744792232478,-540.78774977,0.000179,2]
[358155635,1744792232498,-6430.89496835,0.000179,2]
[358155636,1744792232509,-342.24670376,0.000179,2]
[358155637,1744792232531,-157.95179353,0.000179,2]
[358155638,1744792232541,-252.8219198,0.0001791,2]
[358155639,1744792232550,-352.66179781,0.00017973,2]
[358155640,1744792232560,-1153.86075855,0.00017986,2]
[358155641,1744792232591,-4023.04648129,0.00017986,2]
[358155642,1744792232603,-470.09774556,0.00017986,2]
[358155643,1744792232641,-516.9839616,0.00017986,2]
[358155644,1744792232651,-158.595066,0.00017986,2]
[358155645,1744792232662,-324.4209724,0.00017986,2]
[358155646,1744792232696,-2238.51260755,0.00017986,2]
[358155648,1744792232711,-601.54859924,0.00017986,2]
[358155649,1744792232723,-676.95420781,0.00017986,2]
[358155650,1744792232733,-2034.00437806,0.00017987,2]
[358155651,1744792232744,-372.88538754,0.00017987,2]
[358155652,1744792232755,-346.30784169,0.00017999,2]
[358155654,1744792232768,-7224.38589391,0.00017999,2]
[358155863,1744792238380,-551.42879519,0.00017999,2]
[358155864,1744792238391,-345.9793219,0.00017999,2]
[358155865,1744792238400,-670.2528767,0.00017999,2]
[358155866,1744792238411,-5493.7360703,0.00017999,2]
[358155867,1744792238420,-158.595066,0.00017999,2]
[358155868,1744792238430,-3841.436387,0.00017999,2]
[358155869,1744792238439,-421.39432196,0.00018,2]
[358155870,1744792238463,-333.60567804,0.00018,2]
[358155871,1744792238473,-14.62438028,0.00018,2]
[358155872,1744792238484,-351.64238465,0.00018,2]
[358155873,1744792238493,-240.50123031,0.00018,2]